Cogmind - Beta 10.2 @@@ ROGUE MODE // 2021.01.24 @ 13:41:50 Player: Demise Result: Destroyed by 8R-AWN with 8R-AWN's Boregun Performance ------------- Evolutions (0) 0 Regions Visited (3) 600 Robots Destroyed (27) 135 Value Destroyed (533) 533 Prototype IDs (23) 460 Alien Tech Used (0) 0 Bonus (316) 316 TOTAL SCORE: 2044 Bonus ------- High Alert Combat Kills 16 Aligned with FarCom 300 Cogmind --------- Core Integrity 0/250 Matter 285/300 Energy 86/100 System Corruption 6% Temperature Cool (0) Movement Core (200) Ox3 Location -10/Exiles Parts ------- > --- POWER (1) -------- (None) > --- PROPULSION (2) --- (None) > --- UTILITY (2) ------ Core Shielding Medium Armor Plating > --- WEAPON (2) ------- Mining Claw Mining Claw > --- INVENTORY (4) ---- Mining Claw Peak State ------------ > --- POWER ------------ Light Ion Engine > --- PROPULSION ------- Light Treads Light Treads > --- UTILITY ---------- High-capacity Storage Unit High-capacity Storage Unit > --- WEAPON ----------- Autogun Autogun > --- INVENTORY -------- Light Treads High-capacity Storage Unit High-capacity Storage Unit Large Matter Pod Weight Redist. System Core Shielding Medium Armor Plating Medium Armor Plating Medium Armor Plating Medium Armor Plating Hacking Suite Improved Trap Extractor EM Pulse Gun Light Assault Rifle Autogun Autogun Mining Claw Mining Claw Mining Claw Mining Claw [Rating: 12] Favorites ----------- Power Light Ion Engine Engine Light Ion Engine Propulsion Light Treads Treads Light Treads Utility High-capacity Storage Unit Storage High-capacity Storage Unit Processor Targeting Computer Protection Medium Armor Plating Weapon Autogun Energy Gun EM Pulse Gun Ballistic Gun Autogun Slashing Weapon Mining Claw Build | -11 -10 -10 -10 ------- Run | Scr Mat Min Exi Slots Evolved . | . . . . Power . | . . . . Propulsion . | . . . . Utility . | . . . . Weapon . | . . . . Parts Attached 40 | 5 22 . 13 Power 2 | . 2 . . Engine 2 | . 2 . . Core . | . . . . Reactor . | . . . . Propulsion 7 | 2 4 . 1 Treads 7 | 2 4 . 1 Leg . | . . . . Wheel . | . . . . Hover . | . . . . Flight . | . . . . Utility 15 | . 8 . 7 Device . | . . . . Storage 5 | . 3 . 2 Processor 3 | . 3 . . Hackware . | . . . . Protection 7 | . 2 . 5 Artifact . | . . . . Weapon 16 | 3 8 . 5 Energy Gun 9 | 3 5 . 1 Energy Cannon . | . . . . Ballistic Gun 3 | . 3 . . Ballistic Cannon . | . . . . Launcher . | . . . . Special Weapon . | . . . . Impact Weapon . | . . . . Slashing Weapon 4 | . . . 4 Piercing Weapon . | . . . . Special Melee Weapon . | . . . . Unidentified Prototypes . | . . . . Parts Lost 8 | . 2 1 5 Power 1 | . . 1 . Propulsion 2 | . . . 2 Utility 2 | . . . 2 Weapon 3 | . 2 . 1 Highest Loss Streak 5 | . 1 1 5 Average Slot Usage (%) 85 | . 87 97 78 Engine 4 | . 6 11 . Treads 27 | . 28 28 26 Storage 18 | . 19 28 13 Processor 1 | . 3 . . Protection 4 | . 1 . 10 Energy Gun 4 | . 6 . 5 Ballistic Gun 18 | . 21 28 10 Slashing Weapon 4 | . . . 10 Naked Turns . | . . . . Heaviest Build 86 | 3 73 73 86 Greatest Support 40 | 3 40 40 40 Greatest Overweight (x) 3 | . 1 1 3 Average Overweight (x) . | . . 1 1 Largest Inventory Capacity 24 | 4 20 20 24 Average Capacity 15 | 4 15 20 14 Most Carried 22 | 3 20 20 22 Average Carried 13 | 2 13 20 11 Final Capacity 20 | 4 20 20 4 Final Carried 20 | 3 20 20 1 Class Distribution -------------------- 59% | Hauler-Mutant 40% | Mutant Dominant Class ---------------- Hauler-Mutant | -10/Materials Hauler-Mutant | -10/Mines Mutant | -10/Exiles Resources | -11 -10 -10 -10 ----------- Run | Scr Mat Min Exi Matter Collected 1137 | 250 603 8 276 Remotely . | . . . . Salvage Created 845 | 88 712 27 18 Parts 59 | 5 52 2 . Haulers Intercepted 2 | . 2 . . Recyclers Shooed . | . . . . Parts Field Recycled . | . . . . Retrieved Matter . | . . . . Parts Self-Destructed . | . . . . Prevented . | . . . . Kills | -11 -10 -10 -10 ------- Run | Scr Mat Min Exi Combat Hostiles Destroyed 17 | . 16 . 1 Guns 17 | . 16 . 1 Classes Destroyed 8 | 2 5 . 1 Tunneler 2 | 1 . 1 . Hauler 2 | . 2 . . Recycler 2 | 1 1 . . Operator 2 | . 2 . . Watcher 3 | . 3 . . Swarmer 6 | . 6 . . Grunt 10 | . 10 . . Assembled 1 | . . . 1 Best Kill Streak 6 | 2 6 1 1 Combat Bots Only 5 | . 5 . 1 Max Kills in Single Turn 1 | 1 1 1 1 Gunslinging . | . . . . Exploded . | . . . . Melee . | . . . . Uniques/NPCs Destroyed . | . . . . Combat | -11 -10 -10 -10 -------- Run | Scr Mat Min Exi Damage Taken 1642 | . 377 560 705 Core 257 | . 33 66 158 Absorbed by Shields . | . . . . Core Remaining (%) 100 | 100 . . . Volleys Fired 85 | 4 74 1 6 Largest 2 | 1 2 2 1 Hottest 90 | 40 90 46 40 Shots Fired 153 | 4 141 2 6 Gun 153 | 4 141 2 6 Cannon . | . . . . Launcher . | . . . . Special . | . . . . Kinetic 82 | . 80 2 . Thermal 56 | . 56 . . Explosive . | . . . . Electromagnetic 15 | 4 5 . 6 Robot Hit Streak 16 | 2 16 3 2 Robot Miss Streak 4 | 1 4 . 3 Penetration Max . | . . . . Secondary Targets . | . . . . Shots Hit Robots 119 | 3 95 1 20 Core Hits 46 | 2 40 1 3 Critical Hits 2 | . . . 2 Critical Kills . | . . . . Critical Parts Destroyed . | . . . . Melee Attacks 22 | . . . 22 Impact . | . . . . Slashing 22 | . . . 22 Piercing . | . . . . Sneak Attacks . | . . . . Combat Hostiles . | . . . . Follow-up Attacks 5 | . . . 5 Damage Inflicted 1585 | 39 1084 15 447 Guns 1158 | 39 1084 15 20 Cannons . | . . . . Explosions . | . . . . Melee 427 | . . . 427 Ramming . | . . . . Kinetic 605 | . 590 15 . Thermal 450 | . 450 . . Explosive . | . . . . Electromagnetic 103 | 39 44 . 20 Impact . | . . . . Slashing 427 | . . . 427 Piercing . | . . . . Highest Corruption 6 | . 2 6 6 Average Corruption 4 | . 2 2 6 Corruption Purged . | . . . . Effects 53 | . 12 9 32 Message Errors 17 | . 2 4 11 Matter Fused 11 | . . 2 9 Heat Flow Errors 13 | . 5 2 6 Energy Discharges 3 | . 1 . 2 Data Loss (minor) 3 | . 2 1 . Data Loss (major) 3 | . . . 3 Targeting Errors 3 | . 2 . 1 Overload Shots . | . . . . Overflow Damage . | . . . . Projectiles . | . . . . Explosions . | . . . . Melee . | . . . . Knockbacks . | . . . . Impact . | . . . . Kinetic . | . . . . Secondary . | . . . . Self-Inflicted Damage . | . . . . Shots . | . . . . Rammed . | . . . . Targets Rammed . | . . . . Kicked . | . . . . Crushed . | . . . . Highest Temperature 271 | . 269 118 271 Average Temperature 73 | . 63 52 116 Received Heat Transfer 178 | . 138 40 . Siege Activations . | . . . . Robots Corrupted . | . . . . Combat Hostiles . | . . . . Parts Fried . | . . . . Impact Corruptions . | . . . . Robots Melted . | . . . . Combat Hostiles . | . . . . Parts Melted 2 | . 2 . . Heat Transferred 1095 | . 1095 . . Parts Sabotaged . | . . . . Parts Stolen . | . . . . Parts Stripped . | . . . . Power Chain Reactions . | . . . . Missiles Intercepted . | . . . . Alert | -11 -10 -10 -10 ------- Run | Scr Mat Min Exi Peak Influence 473 | 10 473 83 . Initial 78 | . 6 78 . Average 194 | 3 252 57 . Maximum Alert Level 2 | . 2 . . Low Security (%) 53 | 100 34 100 . Level 1 41 | . 58 . . Level 2 5 | . 7 . . Level 3 . | . . . . Level 4 . | . . . . Level 5 . | . . . . High Security . | . . . . Max Security . | . . . . Squads Dispatched 4 | . 4 . . Investigation 2 | . 2 . . Extermination . | . . . . Reinforcement 2 | . 2 . . Assault . | . . . . Garrison . | . . . . Intercept . | . . . . Construction Impeded . | . . . . Haulers Reinforced . | . . . . Stealth | -11 -10 -10 -10 --------- Run | Scr Mat Min Exi Distress Signals 1 | . 1 . . Communications Jammed . | . . . . Distress Signals . | . . . . Times Spotted 59 | . 35 22 2 Peak Tracking Total 17 | . 8 17 10 Tactical Retreats 5 | . 3 1 1 Traps | -11 -10 -10 -10 ------- Run | Scr Mat Min Exi Traps Triggered 2 | . 2 . . Indirectly . | . . . . Trap Hack Attempts . | . . . . Triggered . | . . . . Disarmed . | . . . . Reprogrammed . | . . . . Reused . | . . . . Traps Extracted . | . . . . Installed . | . . . . Triggered . | . . . . Exploded 3 | . . . 3 Machines | -11 -10 -10 -10 ---------- Run | Scr Mat Min Exi Machines Disabled 4 | . 1 . 3 Max in Single Turn 1 | . 1 . 1 Machines Sabotaged . | . . . . Garrisons Compromised . | . . . . Overloaded Fab Kills . | . . . . Fab Network Shutdowns . | . . . . Hacking | -11 -10 -10 -10 --------- Run | Scr Mat Min Exi Machines Accessed 12 | . 9 1 2 Terminals 6 | . 6 . . Fabricators . | . . . . Repair Stations 1 | . 1 . . Recycling Units 2 | . 2 . . Scanalyzers . | . . . . Garrison Access . | . . . . Total Hacks 34 | . 31 1 2 Successful 21 | . 18 1 2 Failed 13 | . 13 . . Catastrophic 1 | . 1 . . Database Lockouts . | . . . . Manual 23 | . 22 . 1 Terminals 19 | . 19 . . Fabricators . | . . . . Repair Stations 6 | . 6 . . Recycling Units 6 | . 6 . . Scanalyzers . | . . . . Garrison Access . | . . . . Terminal Hacks 5 | . 2 1 2 Record 1 | . . . 1 Open Door 1 | . . 1 . Branch Access Points 1 | . 1 . . Terminal Index 1 | . 1 . . EX-Prototype ID Bank 1 | . . . 1 Fabricator Hacks . | . . . . Repair Station Hacks 6 | . 6 . . Scan Component 3 | . 3 . . Repair 3 | . 3 . . Recycling Unit Hacks 2 | . 2 . . Retrieve Components 2 | . 2 . . Scanalyzer . | . . . . Garrison Access Hacks . | . . . . Unauthorized Hacks 8 | . 8 . . Terminals 5 | . 5 . . Botnet 5 | . 5 . . Fabricators . | . . . . Repair Stations . | . . . . Recycling Units 3 | . 3 . . Reject 1 | . 1 . . Mask 2 | . 2 . . Scanalyzers . | . . . . Garrison Access . | . . . . Data Cores Recovered . | . . . . Used . | . . . . Hacking Detections 8 | . 8 . . Full Trace Events 3 | . 3 . . Feedback Events . | . . . . Feedback Blocked . | . . . . Robot Schematics Acquired . | . . . . Robots Built . | . . . . Matter . | . . . . Time . | . . . . Total Robot Build Rating . | . . . . Part Schematics Acquired . | . . . . Parts Built . | . . . . Matter . | . . . . Time . | . . . . Total Part Build Rating . | . . . . Parts Repaired 3 | . 3 . . Time 78 | . 78 . . Parts Recycled . | . . . . Recycled Matter . | . . . . Retrieved Matter . | . . . . Retrieved Components 10 | . 10 . . Parts Scanalyzed . | . . . . Part Schematics Acquired . | . . . . Parts Damaged . | . . . . Bothacking | -11 -10 -10 -10 ------------ Run | Scr Mat Min Exi Used RIF Installer . | . . . . Robots Hacked . | . . . . Non-combat . | . . . . Combat . | . . . . Robot Hacks Applied . | . . . . Relay Couplers Released . | . . . . Robots Rewired . | . . . . Allies Hacked . | . . . . Hacks Repelled . | . . . . Allies | -11 -10 -10 -10 -------- Run | Scr Mat Min Exi Total Allies . | . . . . Largest Group . | . . . . Highest-Rated Group . | . . . . Highest-Rated Ally . | . . . . Total Orders . | . . . . Ally Attacks . | . . . . Total Damage . | . . . . Kills . | . . . . Allies Corrupted . | . . . . Allies Melted . | . . . . Intel | -11 -10 -10 -10 ------- Run | Scr Mat Min Exi Robot Analysis Total . | . . . . Derelict Logs Recovered . | . . . . Drone Launches . | . . . . Drone Recoveries . | . . . . Exploration | -11 -10 -10 -10 ------------- Run | Scr Mat Min Exi Turns Passed 3494 | 41 1512 584 1357 Spaces Moved 1869 | 46 833 321 669 Core 304 | 46 255 . 3 Treads 1565 | . 578 321 666 Legs . | . . . . Wheels . | . . . . Hover . | . . . . Flight . | . . . . Fastest Speed 50 | 50 50 180 160 Average Speed 158 | 50 137 180 182 Slowest Speed 200 | 50 180 180 200 Overloaded Moves . | . . . . Propulsion Burnouts . | . . . . Robots Hopped . | . . . . Cave-ins Triggered . | . . . . Exploration Rate (%) 62 | 4 99 75 70 Regions Visited 3 Branch Regions 2 Pre-discovered Areas 1 | . . . 1 Known Exits Taken 1 | . 1 . . Unknown Exits Taken 2 | 1 . 1 . Scrap Searched . | . . . . Spaces Dug . | . . . . Terrain Destroyed . | . . . . Melee . | . . . . Projectile . | . . . . AOE . | . . . . Terrain Rammed . | . . . . Walls Destroyed . | . . . . Machines Disabled . | . . . . Actions | -11 -10 -10 -10 --------- Run | Scr Mat Min Exi Total 2249 | 58 1083 326 782 Wait 101 | . 94 3 4 Move 1866 | 45 832 320 669 Hop . | . . . . Pick Up 76 | 3 37 1 35 Fast Attach 16 | 4 9 . 3 Attach 12 | 1 4 . 7 Detach 10 | 1 5 . 4 Swap 12 | . 9 . 3 Drop 51 | . 16 1 34 Fire 85 | 4 74 1 6 Melee 17 | . . . 17 Ram . | . . . . Kick . | . . . . Crush . | . . . . Escape Stasis . | . . . . Rewire 3 | . 3 . . Trap . | . . . . Miscellaneous . | . . . . Route ------- -11/Scrapyard -10/Materials (discovered 4 exits: *Mat x3 / *Min) -10/Mines (discovered 3 exits: *Mat x2 / *Exi) -10/Exiles (discovered 1 exit: [*Min]) History --------- Turn | Location | Event 8 | -11/Scrapyard | Discovered new exit (range 16) 42 | -11/Scrapyard | Entered Materials 91 | -10/Materials | Discovered new exit (range 10) 304 | -10/Materials | Discovered new exit (range 7) 306 | -10/Materials | Build established: Mutant 409 | -10/Materials | Discovered new exit (range 12) 832 | -10/Materials | Identified exit to Mines 845 | -10/Materials | Discovered new exit (range 7) 886 | -10/Materials | Build established: Hauler-Mutant 1115 | -10/Materials | Identified exit to Materials 1314 | -10/Materials | Repaired Lgt. Treads 1341 | -10/Materials | Repaired Lgt. Treads 1368 | -10/Materials | Repaired Lgt. Assault Rifle 1554 | -10/Materials | Entered Mines 1695 | -10/Mines | Deemed a non-threat by the Exiles lab entrance 1695 | -10/Mines | Discovered new exit (range 5) 1780 | -10/Mines | Met a Derelict who couldn't figure out how to use a Trap Extractor 1898 | -10/Mines | Discovered exit to Materials (range 7) 1979 | -10/Mines | Discovered exit to Materials (range 10) 2016 | -10/Mines | Assembled infested the area 2138 | -10/Mines | Entered Exiles 2183 | -10/Exiles | Met 8R-AWN 2214 | -10/Exiles | Met EX-HEX 2400 | -10/Exiles | Met EX-DEC 2432 | -10/Exiles | Learned location of Zion (-6) 2500 | -10/Exiles | Discovered new exit (range 10) 2936 | -10/Exiles | Build established: Mutant 3134 | -10/Exiles | Met EX-BIN 3153 | -10/Exiles | Aligned with FarCom system 3155 | -10/Exiles | Given EX-Vault access code 3200 | -10/Exiles | Opened EX-Vault 3213 | -10/Exiles | Found Trap Reconfigurator 3217 | -10/Exiles | Found Supersonic Drone Bay 3260 | -10/Exiles | Warned to stay clear of 0b10 Research branches 3336 | -10/Exiles | Attacked by the Exiles 3449 | -10/Exiles | Core integrity fell below 50% 3480 | -10/Exiles | Core integrity fell below 20% 3495 | -10/Exiles | Destroyed by 8R-AWN with 8R-AWN's Boregun Last Messages --------------- 03471_ Penetrated by HV Slug. 03471_ Critical hit. 03473_ Penetrated by HV Slug. 03473_ Critical hit. 03473_ Penetrated by HV Slug. 03473_ Critical hit. 03477_ Mining Claw follow-up attack on 8R-AWN. 03479_ Penetrated by HV Slug. 03483_ Critical hit. 03483_ Med. Armor Plating destroyed. 03483_ Penetrated by HV Slug. 03486_ Destroyed Prototype Protection. 03486_ Mining Claw follow-up attack on 8R-AWN. 03486_ Penetrated by HV Slug. 03491_ Mining Claw destroyed. 03491_ Penetrated by HV Slug. 03491_ Critical hit. 03495_ Penetrated by HV Slug. 03495_ Critical hit. 03495_ Penetrated by HV Slug. Map ----- +----------------------------------------------------+ | ?????????????????????????????????????????????????? | | ?????????????????????????????????????????????????? | | ?????????????????????????????????????????????????? | | ?????????????????????????????????????????????????? | | ?????????????????????????????????????????????????? | | ?????????????????????????????????????????????????? | | ?????????????????????????????????????????????????? | | ?????????????????????????????????????????????????? | | ?????????????????????????????????????????????????" | | ???#####?????????????????????????????????????????" | | ??## ##???????????????????????????????????????#" | | ??# #???????????????????????????????????????#" | | ??# < #???????????????????????????????????????#" | | ??# = ###?????????????????????????????????????#" | | ??# [![[ #?????????????????????????????????????## | | ??# ! !![#???????????????????????????????????????? | | ??##!! [ #???????????????????????????????????????? | | ???# ! ##??????????????????????????????????????? | | ???## #????????????#######???????????????????? | | ????# #######??????#!!! "#???????????????????? | | ????# #""##?????# "#???????????????????? | | ????## #?????# "#???????????????????? | | ?????##" ##???## ""#????????????##?????? | | ?????#"" #####" ""#???????????? """??? | | ?????#### ##" g""#????????????" """??? | | ????????## #"" @ #??????????????" ??? | | ?????????#"## #?????????????"" ??? | | ?????????####### ##????????????"" "#?? | | ??????????????#### ####????????? ""??? | | ?????????######"# ;""#??????????" "???? | | ?????????# !!""" ""#?????????# #???? | | ?????????#! ! ###"" % "#####???### ###?# | | ?????????# !!! #?##" "#####X# #"### | | ?????????# ![!!##??#" %% """" | | ?????????# ! "" ;##???#"# % "" " | | ?????????######;###?????#### | | ?????????????# #???????????### % | | ????????????# #??????????????### | | ???????????# #?????????????????## | | ??????????? #???????????????????## | | ?????????? ??????????????????????##" | | ?????????#????????????????????????#""" | | ?????????????????????????????????##" | | ?????????????????????????????????#"" | | ?????????????????????????????????#""" "" | | ????????????????????????????????#""" """ | | ????????????????????????????????#""" "" | | ????????????????????????????????#"" # | | ????????????????????????????????#""" | | ????????????????????????????????#"" | +----------------------------------------------------+ Best States ------------- Heat Dissipation 25 Energy Generation 10 Energy Capacity 125 Matter Stores 300 Matter Capacity 300 Sight Range 18 Terrain Scan Density 10 Armor Coverage 300 Core Shielding 20 Evasion (%) 50 Targeting Accuracy 5 Recoil Reduction 2 Item Schematics ----------------- None Robot Schematics ------------------ None Fabricated ------------ Nothing Alien Tech Used ----------------- None Achievements -------------- None Challenges ------------ None Game ------ Seed LightningDeuteriumSabre Manual? 0 Play Time 00:22:46 Cumulative 236.6 hours Start 2021.01.24 @ 13:20:33 End 2021.01.24 @ 13:41:50 Sessions 1 Manual Loads 0 Difficulty Rogue Special Mode None Game No. 213 Rogue 213 Adventurer 0 Explorer 0 Win Type - Total 1 Types 0/0/0/1/0/0/0/0/0 Lore% 61 Gallery% 72 Achievement% 57 Wizard Run 0 Options --------- ASCII 0 Keyboard 1 Movement Numpad Keybinds 0 Fullscreen 1 Font 12/Terminus Map View 83x54 Tactical HUD 1 Map Filters NONE Filters NONE Steam 1 RUN: 3136c100-b626-484b-919d-ca5fb4cf4aec